bitfinex-derivatives/quotes_SOLF0:USTF0_20250819
["timestamp","ask_amount","ask_price","bid_price","bid_amount"]
[1755569473640,3.85867792,182.52,182.48,3.02513098]
[1755569473845,3.03,182.59,182.51,3.02513098]
[1755569474045,3.03,182.57,182.5,2.93]
[1755569474344,3.85963828,182.56,182.5,2.93]
[1755569474539,6.88963828,182.55,182.5,2.93]
[1755569474746,3.03,182.55,182.5,2.93]
[1755569475048,3.06812138,182.55,182.51,2.93]
[1755569476240,0.03812138,182.55,182.49,2.93]
[1755569477535,0.03812138,182.55,182.49,8.407]
[1755569479651,0.03812138,182.55,182.49,2.93]
[1755569480147,0.03812138,182.55,182.51,3.02513098]
[1755569480449,0.03812138,182.55,182.48,5.95513098]
[1755569480744,3.03,182.56,182.48,5.95513098]
[1755569481049,3.03,182.56,182.48,11.43243098]
[1755569481644,3.03,182.56,182.48,5.95513098]
[1755569481847,0.03640285,182.54,182.48,5.95513098]
[1755569483746,0.03640285,182.54,182.48,11.43243098]
[1755569483946,0.03640285,182.54,182.43,8.90381954]
[1755569483947,3.03,182.53,182.44,2.89]
[1755569484149,3.03,182.53,182.44,11.39343098]
[1755569484150,3.86566213,182.52,182.44,11.39343098]
[1755569484344,3.03,182.53,182.44,5.91513098]
[1755569484547,3.8659798,182.52,182.45,2.89]
[1755569484744,0.03610585,182.5,182.47,2.89]
[1755569485249,0.03610585,182.5,182.49,2.89]
[1755569485651,3.03,182.57,182.49,3.43]
[1755569485852,3.86837728,182.56,182.52,2.89]
[1755569486040,3.86837728,182.55,182.52,2.89]
[1755569486246,3.03,182.57,182.52,2.89]
[1755569486446,3.86868943,182.56,182.52,2.89]
[1755569486647,3.03,182.57,182.53,2.89]
[1755569486847,3.86834909,182.56,182.53,2.89]
[1755569487044,3.03,182.57,182.52,5.4762]
[1755569487247,3.03,182.61,182.55,2.89]
[1755569487553,3.86864723,182.6,182.56,2.89]
[1755569487753,3.03,182.61,182.56,2.89]
[1755569487946,3.86800258,182.6,182.56,2.89]
[1755569488151,3.03,182.61,182.57,2.89]
[1755569488355,3.86798638,182.6,182.57,2.93216019]
[1755569488648,136.04,182.66,182.58,2.89]
[1755569488854,3.86728403,182.65,182.6,3.02513098]
[1755569489049,6.89728403,182.64,182.6,5.91513098]
[1755569489245,3.86728403,182.63,182.6,3.02513098]
[1755569489450,3.03,182.62,182.6,3.02513098]
[1755569489754,3.03,182.62,182.6,3.06419275]
[1755569490147,3.03,182.64,182.6,0.03906177]
[1755569490348,3.86459938,182.63,182.6,0.03906177]
[1755569490543,136.04,182.66,182.6,0.03906177]
[1755569490544,3.03,182.62,182.6,0.03906177]
[1755569491254,3.03,182.65,182.6,0.03906177]
[1755569491454,3.03,182.63,182.6,0.03906177]
[1755569491756,3.86266203,182.64,182.6,0.03906177]
[1755569491757,3.03,182.61,182.6,0.03906177]
[1755569493756,139.07,182.66,182.6,0.03906177]
[1755569494053,3.86035246,182.65,182.61,2.89]
[1755569494362,3.86035246,182.64,182.61,2.89]
[1755569494558,139.07,182.66,182.61,2.89]
[1755569494856,3.85658425,182.65,182.61,2.89]
[1755569495059,139.07,182.66,182.61,2.89]
[1755569495255,3.85675304,182.65,182.61,2.89]
[1755569495558,139.07,182.66,182.61,2.89]
[1755569495760,3.85522685,182.65,182.61,2.89]
[1755569495961,136.04,182.66,182.61,5.91513098]
[1755569496261,3.03,182.69,182.62,2.89]
[1755569496462,3.85352733,182.68,182.62,2.89]
[1755569496662,3.03,182.69,182.62,2.89]
[1755569496962,3.03,182.69,182.63,0.03940115]
[1755569497161,3.03,182.69,182.63,5.51220115]
[1755569497459,136.0,182.72,182.63,5.51220115]
[1755569497460,136.0,182.72,182.65,2.89]
[1755569497856,3.03,182.73,182.65,2.89]
[1755569497857,3.03,182.73,182.67,3.02513098]
[1755569498057,3.03,182.75,182.68,2.89]
[1755569498655,3.03,182.74,182.7,0.03588473]
[1755569498856,3.03,182.73,182.7,0.03588473]
[1755569499360,3.03,182.71,182.7,0.03588473]
[1755569500152,3.84316484,182.71,182.61,3.02513098]
[1755569500356,3.03,182.69,182.58,5.91513098]
[1755569500552,3.03,182.69,182.59,2.89]
[1755569501362,0.03612034,182.66,182.59,2.89]
[1755569502364,3.06612034,182.66,182.59,2.89]
[1755569503358,3.06612034,182.66,182.56,2.89]
[1755569503762,3.03,182.66,182.53,4.76169904]
[1755569504066,0.03533592,182.63,182.53,2.89]
[1755569504262,3.03,182.62,182.53,2.89]
[1755569504862,3.03,182.65,182.53,2.89]
[1755569505257,0.03805792,182.61,182.57,2.89]
[1755569505461,0.03805792,182.61,182.58,2.89]
[1755569506973,0.03805792,182.61,182.59,2.89]
[1755569508671,0.03805792,182.61,182.58,5.4743]
[1755569508879,0.03805792,182.61,182.6,2.89]
[1755569511973,0.03805792,182.61,182.58,2.89]
[1755569513275,0.03805792,182.61,182.58,2.86]
[1755569513571,0.03805792,182.61,182.59,2.86]
[1755569515678,0.03805792,182.61,182.57,2.86]
[1755569515875,3.14,182.69,182.65,2.86]
[1755569516370,3.14,182.72,182.66,2.86]
[1755569517077,3.14,182.72,182.67,0.04081762]
[1755569517281,368.08,182.76,182.67,0.04081762]
[1755569517282,3.14,182.71,182.67,0.04081762]
[1755569517479,368.08,182.76,182.67,0.04081762]
[1755569517480,3.14,182.75,182.67,0.04081762]
[1755569520984,3.14,182.75,182.68,2.86]
[1755569521378,139.32,182.78,182.68,7.62169904]
[1755569521684,139.32,182.78,182.69,2.86]
[1755569522178,136.18,182.78,182.72,2.89728216]
[1755569522383,136.18,182.78,182.72,5.91473954]
[1755569523273,136.18,182.78,182.72,11.38463954]
[1755569523479,3.14,182.81,182.72,5.91473954]
[1755569524486,3.14,182.81,182.72,11.38483954]
[1755569524885,3.14,182.81,182.73,2.86]
[1755569525281,3.14,182.81,182.74,5.4695]
[1755569525478,3.14,182.81,182.73,2.86]
[1755569525988,3.14,182.81,182.75,0.03481071]
[1755569526793,3.14,182.81,182.75,3.05226809]
[1755569526984,3.14,182.81,182.77,2.86]
[1755569527183,3.14,182.81,182.78,2.86]
[1755569527385,136.12,182.84,182.78,2.86]
[1755569527386,139.26,182.84,182.78,2.86]
[1755569528191,136.12,182.84,182.79,0.03827225]
[1755569528394,3.14,182.83,182.79,0.03827225]
[1755569528790,3.14,182.82,182.79,0.03827225]
[1755569528984,3.14,182.89,182.8,2.86]
[1755569529181,3.14,182.87,182.8,2.86]
[1755569529785,3.14,182.92,182.84,5.87745738]
[1755569529985,3.14,182.92,182.86,5.4657]
[1755569530194,3.01745738,183.04,182.7,121.19832288]
[1755569530195,3.14,182.96,182.83,2.86]
[1755569530388,3.14,182.96,182.9,3.01745738]
[1755569531492,3.14,182.96,182.91,0.04194829]
[1755569531692,3.14,182.96,182.91,2.90194829]
[1755569532393,3.14,183.0,182.91,2.90194829]
[1755569532790,3.14,183.0,182.91,8.36614829]
[1755569534101,3.14,183.0,182.91,2.90194829]
[1755569534598,3.14,183.0,182.91,8.36624829]
[1755569535096,3.14,183.0,182.91,2.90194829]
[1755569536290,3.14,183.0,182.91,0.04194829]
[1755569538791,3.8612152,182.99,182.91,0.04194829]
[1755569538992,3.14,182.98,182.91,0.04194829]
[1755569540500,3.14,182.98,182.91,2.90194829]
[1755569544705,3.14,182.98,182.91,0.04194829]
[1755569548203,3.16,182.96,182.91,0.04194829]
[1755569548404,4.74544188,183.0,182.91,0.04194829]
[1755569548605,3.16,182.94,182.91,0.04194829]
[1755569548810,3.16,182.97,182.91,0.04194829]
[1755569550704,3.16,182.95,182.91,0.04194829]
[1755569551014,3.16,182.94,182.91,0.04194829]
[1755569551612,4.74544188,183.0,182.91,0.04194829]
[1755569551613,3.16,182.99,182.91,0.04194829]
[1755569551812,3.16,182.97,182.91,0.04194829]
[1755569552710,3.16,182.95,182.91,0.04194829]
[1755569552913,3.16,182.93,182.91,0.04194829]
[1755569553114,7.01956515,182.92,182.91,0.04194829]
[1755569553619,3.16,182.91,182.81,3.07]
[1755569554813,0.03638325,182.88,182.81,3.07]
[1755569555320,0.03638325,182.88,182.79,3.07]
[1755569556411,0.03638325,182.88,182.78,4.74544188]
[1755569556412,0.03638325,182.88,182.83,3.07]
[1755569556613,0.03638325,182.88,182.84,3.07]
[1755569557006,0.03638325,182.88,182.79,3.07]
[1755569558221,0.03638325,182.88,182.84,3.07]
[1755569558513,0.03638325,182.88,182.82,4.74544188]
[1755569558722,136.16,182.94,182.87,3.07]
[1755569559019,3.87589833,182.93,182.87,3.07]
[1755569559214,0.03771712,182.92,182.87,3.07]
[1755569559414,0.03771712,182.92,182.88,5.4653]
[1755569559619,0.03771712,182.92,182.86,4.74544188]
[1755569559915,0.03771712,182.92,182.88,5.4654]
[1755569560113,0.03771712,182.92,182.91,3.07]
[1755569561518,3.16,183.0,182.91,3.07]
[1755569561817,3.8884579,182.99,182.95,3.07]
[1755569562122,3.16,183.04,182.95,3.07]
[1755569562418,3.8891285,183.03,182.95,3.07]
[1755569562610,3.8891285,183.02,182.95,3.07]
[1755569562918,3.8891285,183.01,182.99,3.07]
[1755569563114,139.48,183.05,182.99,3.07]
[1755569563315,8.25657772,183.04,182.99,3.07]
[1755569563511,3.87570383,183.03,182.99,3.07]
[1755569563708,3.87570383,183.02,182.99,3.07]
[1755569563913,3.87570383,183.01,182.99,3.07]
[1755569564223,136.32,183.05,182.99,3.07]
[1755569564416,8.264545,183.04,183.0,3.07]
[1755569564720,3.88079271,183.03,183.0,3.07]
[1755569564922,7.04079271,183.02,182.98,0.0357569]
[1755569565121,3.88079271,183.01,182.98,3.1057569]
[1755569565626,3.88079271,183.01,182.98,0.0357569]
[1755569565826,3.16,182.99,182.98,0.0357569]
[1755569566121,3.88079271,182.99,182.98,0.0357569]
[1755569569424,7.04079271,182.99,182.98,0.0357569]
[1755569570024,11.43270187,182.99,182.98,0.0357569]
[1755569570725,3.88079271,182.99,182.98,0.0357569]
[1755569572720,3.88079271,182.99,182.98,3.1257569]
[1755569573121,3.88079271,182.99,182.98,0.0357569]
[1755569573626,3.88079271,182.99,182.98,3.1257569]
[1755569574429,9.05751142,183.07,182.98,3.1257569]
[1755569574639,8.30152965,183.06,182.98,3.1257569]
[1755569574926,8.30152965,183.05,182.98,3.1257569]
[1755569575127,3.89881463,183.04,182.98,8.5881569]
[1755569575428,3.89881463,183.03,183.0,3.09]
[1755569575627,3.89881463,183.02,183.0,3.09]
[1755569575831,2.99,183.07,183.0,3.09]
[1755569576030,8.30076372,183.06,183.0,3.09]
[1755569576227,3.89844057,183.05,183.0,3.09]
[1755569576432,3.89844057,183.04,183.01,3.09]
[1755569576632,2.99,183.07,182.99,0.03948084]
[1755569576633,3.89844057,183.03,183.02,3.09]
[1755569577326,2.99,183.07,183.02,3.09]
[1755569577530,6.06751142,183.1,183.01,0.03892399]
[1755569577531,2.99,183.1,183.01,0.03892399]
[1755569577829,3.89735388,183.09,183.05,3.09]
[1755569578027,3.89735388,183.08,183.02,3.09]
[1755569578225,3.89472492,183.07,182.99,4.74544188]
[1755569578421,2.99,183.08,183.03,3.09]
[1755569578732,3.8947308,183.07,183.03,3.1317541]
[1755569578927,2.99,183.08,183.04,3.09]
[1755569579122,6.8847308,183.07,183.03,0.0417541]
[1755569579325,2.99,183.07,183.03,3.1317541]
[1755569580124,136.36,183.11,183.03,3.1317541]
[1755569580322,6.88296446,183.1,183.03,3.1317541]
[1755569580522,3.89296446,183.09,183.03,0.0417541]
[1755569582034,2.99,183.05,183.03,0.0417541]
[1755569583529,2.99,183.1,183.03,0.0417541]
[1755569583729,3.00801222,183.06,183.03,0.0417541]
[1755569583930,2.99,183.04,183.03,0.0417541]
[1755569584236,6.87924167,183.04,183.03,0.0417541]
[1755569585732,2.99,183.07,183.03,0.0417541]
[1755569585930,136.36,183.09,183.03,0.0417541]
[1755569586130,2.99,183.04,183.03,0.0417541]
[1755569592239,2.99,183.06,183.03,0.0417541]
[1755569592540,139.36801222,183.09,183.03,0.0417541]
[1755569592740,3.83429407,183.08,183.03,0.0417541]
[1755569592939,2.99,183.06,183.03,0.0417541]
[1755569594443,136.36,183.09,183.03,0.0417541]
[1755569594633,6.82473661,183.08,183.03,3.1317541]
[1755569594841,136.36,183.09,183.03,3.1317541]
[1755569595142,2.99,183.07,183.03,3.1317541]
[1755569595439,136.36,183.09,183.03,0.0417541]
[1755569595639,3.83502826,183.08,183.03,0.0417541]
[1755569595844,2.99,183.07,183.03,0.0417541]
[1755569596141,2.99,183.06,183.03,0.0417541]
[1755569596741,2.99,183.05,183.03,0.0417541]
[1755569597941,2.99,183.04,183.03,0.0417541]
[1755569598439,6.82804931,183.04,183.03,0.0417541]
[1755569598737,2.99,183.03,182.92,6.09801222]
[1755569598930,2.99,183.03,182.92,11.56201222]
[1755569599131,2.99,183.01,182.92,6.09801222]
[1755569600038,0.03782556,182.98,182.92,11.56221222]
[1755569601638,0.03782556,182.98,182.92,3.09]
[1755569601843,0.03782556,182.98,182.89,3.00801222]
[1755569601844,3.02782556,182.98,182.89,3.00801222]
[1755569602235,3.02782556,182.98,182.89,8.47311222]
[1755569602437,3.02782556,182.98,182.9,3.04]
[1755569603147,3.85067624,182.97,182.9,3.04]
[1755569603449,3.02782556,182.98,182.9,3.04]
[1755569603747,3.85081676,182.97,182.9,8.5048]
[1755569603949,3.02782556,182.98,182.9,8.5048]
[1755569604248,3.85097811,182.97,182.9,3.04]
[1755569604448,3.85097811,182.96,182.9,3.04]
[1755569604653,3.02782556,182.98,182.9,3.04]
[1755569604948,3.85222874,182.97,182.9,3.04]
[1755569605144,3.85222874,182.96,182.9,3.04]
[1755569605337,0.03782556,182.98,182.95,3.00801222]
[1755569605541,0.03782556,182.98,182.96,3.04]
[1755569605743,138.93,183.01,182.97,3.04]
[1755569605941,3.8534832,183.0,182.97,3.04]
[1755569606145,0.03576001,182.99,182.98,3.04]
[1755569606548,3.01,183.05,182.98,3.04]
[1755569606740,3.85481744,183.04,182.98,3.04]
[1755569606951,0.03919761,183.0,182.99,3.04]
[1755569607352,136.0,183.07,182.99,8.5022]
[1755569607550,8.11955584,183.06,182.99,8.5022]
[1755569607747,370.19,183.08,182.99,5.4622]
[1755569607748,0.0420848,183.01,182.99,5.4622]
[1755569607942,0.0420848,183.01,183.0,8.5019]
[1755569608143,370.19,183.08,183.0,3.04]
[1755569608348,3.8541033,183.07,183.01,3.00801222]
[1755569608542,3.8541033,183.06,183.02,3.04]
[1755569608747,3.8541033,183.05,183.02,3.04]
[1755569609052,3.8537701,183.04,182.98,3.00801222]
[1755569609247,3.8537701,183.03,182.99,3.04]
[1755569609454,3.01,183.05,182.99,3.04]
[1755569609647,3.85377371,183.04,182.99,3.04]
[1755569609852,0.03460872,183.03,183.01,3.00801222]
[1755569610153,0.03460872,183.03,183.02,3.04]
[1755569610455,0.95098856,183.1,183.02,8.5013]
[1755569610655,3.85445293,183.09,183.02,3.04]
[1755569610858,3.85445293,183.08,183.02,3.04]
[1755569611151,3.01,183.11,183.02,3.04]
[1755569611349,3.85415923,183.1,183.02,3.04]
[1755569611546,3.85415923,183.09,183.05,3.04]
[1755569611748,3.01,183.13,183.05,3.04]
[1755569611954,3.85522098,183.12,183.05,3.04]
[1755569612256,3.85522098,183.11,183.05,3.04]
[1755569612455,3.85522098,183.1,183.04,3.00801222]
[1755569612653,3.01,183.13,183.07,3.04]
[1755569612858,6.86413882,183.12,183.07,3.04]
[1755569613050,6.86413882,183.11,183.07,3.04]
[1755569613251,3.01,183.11,183.07,3.04]
[1755569614160,3.96072876,183.15,183.07,3.04]
[1755569614457,3.85230911,183.14,183.07,3.04]
[1755569614652,3.85230911,183.13,183.07,3.04]
[1755569614854,3.85230911,183.12,183.08,3.04]
[1755569615060,3.85230911,183.11,183.08,3.04]
[1755569615258,3.96072876,183.15,183.08,3.04]
[1755569615558,3.85148483,183.14,183.05,5.4603]
[1755569615761,3.85148483,183.13,183.05,5.4603]
[1755569615951,3.85148483,183.12,183.05,5.4603]
[1755569616151,3.96072876,183.15,183.05,5.4603]
[1755569616357,3.850814,183.14,183.05,5.4603]
[1755569616558,3.850814,183.13,183.05,5.4603]
[1755569616754,3.850814,183.12,183.05,5.4603]
[1755569616955,3.96072876,183.15,183.05,5.4603]
[1755569617155,3.85080086,183.14,183.05,5.4603]
[1755569617355,3.85080086,183.13,183.05,5.4603]
[1755569617557,3.85080086,183.12,183.05,5.4603]
[1755569617757,3.84972183,183.11,183.04,3.00801222]
[1755569617961,3.01,183.09,183.01,3.04]
[1755569618153,3.84972183,183.08,182.98,8.47041222]
[1755569618353,3.84972183,183.07,182.99,3.04]
[1755569618556,3.01,183.08,182.99,3.04]
[1755569618755,3.84942365,183.07,182.99,3.04]
[1755569618954,3.01,183.08,182.99,3.04]
[1755569619150,3.84942233,183.07,182.99,3.04]
[1755569619355,3.01,183.08,182.99,3.04]
[1755569619661,3.84964095,183.07,182.99,3.04]
[1755569619862,3.01,183.08,182.99,3.04]
[1755569620063,3.84947892,183.07,182.99,3.04]
[1755569620262,3.84947892,183.06,182.99,3.04]
[1755569620561,3.01,183.05,182.99,3.04]
[1755569620956,3.01,183.09,183.01,3.04]
[1755569621158,3.84980917,183.08,183.01,3.04]
[1755569621356,3.01,183.09,183.01,6.04801222]
[1755569621559,3.01,183.09,183.02,8.5011]
[1755569621854,135.94,183.1,183.03,3.00801222]
[1755569622265,138.95,183.1,183.03,3.00801222]
[1755569622460,6.86082289,183.09,183.01,3.00801222]
[1755569622662,3.85082289,183.08,183.01,3.00801222]
[1755569622863,3.85093863,183.07,183.01,3.00801222]
[1755569623061,3.01,183.09,183.01,3.00801222]
[1755569623267,3.8511904,183.08,183.01,3.00801222]
[1755569623462,3.8511904,183.07,183.01,3.00801222]
[1755569623667,3.01,183.09,183.01,3.00801222]
[1755569623864,135.94,183.1,182.98,8.5024]
[1755569623865,3.85218782,183.08,182.98,6.04801222]
[1755569624065,6.86218782,183.07,182.98,6.04801222]
[1755569624262,3.85218782,183.06,182.98,6.04801222]
[1755569624461,3.01,183.07,182.98,6.04801222]
[1755569624664,3.85279058,183.06,182.98,6.04801222]
[1755569624966,3.01,183.07,182.98,6.04801222]
[1755569625159,3.85279058,183.06,182.98,6.04801222]
[1755569625365,3.01,183.07,182.98,6.04801222]
[1755569625669,3.853043,183.06,182.98,6.04801222]
[1755569625971,3.01,183.07,182.98,6.04801222]
[1755569626159,3.85302483,183.06,182.98,6.04801222]
[1755569626365,3.01,183.07,182.98,6.04801222]
[1755569626566,3.85319717,183.06,182.98,6.04801222]
[1755569626767,3.01,183.07,182.98,6.04801222]
[1755569626968,3.85303147,183.06,182.98,6.04801222]
[1755569627272,3.01,183.07,182.98,6.04801222]
[1755569627467,3.01,183.05,182.98,6.04801222]
[1755569627867,3.01,183.05,182.88,135.94]
[1755569627868,3.85333654,183.04,182.95,6.04801222]
[1755569628072,3.85326426,183.03,182.95,6.04801222]
[1755569628271,3.01,183.05,182.95,6.04801222]
[1755569628469,3.85315892,183.04,182.95,6.04801222]
[1755569628772,3.01,183.05,182.95,6.04801222]
[1755569628967,3.8531669,183.04,182.96,5.463]
[1755569629274,3.01,183.05,182.97,3.04]
[1755569629571,3.85328276,183.04,182.97,3.04]
[1755569629870,3.01,183.05,182.97,3.04]
[1755569630070,3.85328346,183.04,182.97,3.04]
[1755569630266,3.01,183.05,182.97,3.04]
[1755569630465,3.85340437,183.04,182.97,3.04]
[1755569630666,3.01,183.05,182.97,3.04]
[1755569630971,3.85324029,183.04,182.97,3.04]
[1755569631172,3.01,183.05,182.97,3.04]
[1755569631368,3.96101455,183.09,182.98,3.00801222]
[1755569631675,3.85341609,183.08,183.0,3.04]
[1755569631970,3.96101455,183.09,183.0,3.04]
[1755569631971,3.85341609,183.07,183.0,3.04]
[1755569632174,3.85341609,183.06,183.0,3.04]
[1755569632877,3.15,183.05,182.96,3.17]
[1755569633071,3.85341609,183.04,182.96,3.17]
[1755569633272,3.15,183.05,182.96,3.17]
[1755569633570,3.8531832,183.04,182.96,3.17]
[1755569633875,3.15,183.05,182.96,8.633]
[1755569634269,3.85319943,183.04,182.96,8.633]
[1755569634469,3.15,183.05,182.96,8.633]
[1755569634670,3.85319943,183.04,182.96,8.633]
[1755569634873,3.15,183.05,182.96,8.633]
[1755569635073,3.85422343,183.04,182.97,5.4627]
[1755569635273,3.15,183.05,182.97,5.4627]
[1755569635473,3.85423789,183.04,182.97,5.4627]
[1755569635675,3.15,183.05,182.97,5.4627]
[1755569635877,3.85423789,183.04,182.97,5.4627]
[1755569636072,3.15,183.05,182.97,5.4627]
[1755569636273,3.85425668,183.04,182.97,5.4627]
[1755569636474,3.15,183.05,182.97,5.4627]
[1755569636674,3.85428944,183.04,182.96,8.633]
[1755569636876,3.15,183.05,182.96,8.633]
[1755569636877,3.15,183.05,182.96,3.17]
[1755569637075,3.85502454,183.04,182.96,3.17]
[1755569637285,3.15,183.05,182.96,3.17]
[1755569637474,3.85501519,183.04,182.96,3.17]
[1755569637670,3.15,183.05,182.96,3.17]
[1755569637875,3.15,183.03,182.96,3.17]
[1755569640383,3.15,183.03,182.92,6.17801222]
[1755569640587,3.15,183.01,182.92,6.17801222]
[1755569640787,3.15,182.99,182.89,3.00801222]
[1755569641089,3.15,182.97,182.84,3.17]
[1755569641294,3.15,182.94,182.84,3.17]
[1755569641490,3.85379508,182.93,182.84,8.6366]
[1755569641683,3.15,182.94,182.84,8.6366]
[1755569641887,3.84993928,182.93,182.84,3.17]
[1755569642185,3.84993928,182.92,182.84,3.17]
[1755569642388,0.03619975,182.9,182.84,3.17]
[1755569643291,0.03619975,182.9,182.86,3.00801222]
[1755569643489,0.03619975,182.9,182.87,3.17]
[1755569643794,3.15,182.94,182.84,3.17]
[1755569643989,0.03525707,182.9,182.84,3.17]
[1755569644988,0.03525707,182.9,182.86,3.00801222]
[1755569645389,0.03525707,182.9,182.88,3.17]
[1755569645999,0.03525707,182.9,182.86,3.00801222]
[1755569646195,0.03525707,182.9,182.89,6.17801222]
[1755569646588,3.15,182.97,182.89,6.17801222]
[1755569646890,0.03581154,182.91,182.89,6.17801222]
[1755569647290,3.15,182.97,182.89,6.17801222]
[1755569647495,0.03682885,182.92,182.89,6.17801222]
[1755569647898,0.03682885,182.92,182.9,3.17]
[1755569649002,0.03682885,182.92,182.89,8.47311222]
[1755569649211,0.03682885,182.92,182.91,3.17]
[1755569649502,135.82,182.99,182.91,3.17]
[1755569649698,135.82,182.99,182.92,3.00801222]
[1755569650293,3.15,182.98,182.92,3.00801222]
[1755569650499,3.15,182.98,182.89,3.00801222]
[1755569651494,3.15,182.98,182.87,3.17]
[1755569651699,3.15,182.96,182.87,3.17]
[1755569651898,3.15,182.96,182.86,3.00801222]
[1755569652095,3.15,182.94,182.84,3.17]
[1755569652597,3.15,182.94,182.84,8.6366]
[1755569652802,3.15,182.94,182.84,3.17]
[1755569653101,3.15,182.94,182.85,5.4663]
[1755569653298,3.15,182.94,182.84,3.17]
[1755569653701,3.15,182.94,182.84,8.6366]
[1755569656001,3.15,182.93,182.81,3.00801222]
[1755569656800,3.15,182.9,182.8,3.17]
[1755569660804,3.15,182.9,182.8,8.6378]
[1755569661003,3.15,182.9,182.8,3.17]
[1755569661503,3.15,182.9,182.81,5.4675]
[1755569662310,3.15,182.9,182.8,8.6377]
[1755569663304,3.15,182.9,182.8,3.17]
[1755569664607,3.15,182.9,182.8,8.6377]
[1755569665809,3.15,182.9,182.8,3.17]
[1755569666314,3.15,182.9,182.8,8.6378]
[1755569669518,3.15,182.9,182.8,3.17]
[1755569669907,3.00801222,182.89,182.8,3.17]
[1755569670112,6.67791613,182.88,182.8,3.17]
[1755569670314,2.86,182.87,182.78,3.00801222]
[1755569672720,2.86,182.87,182.77,3.02]
[1755569673020,2.86,182.85,182.75,3.00801222]
[1755569673213,2.86,182.83,182.75,3.00801222]
[1755569674518,5.86801222,182.9,182.78,8.47621222]
[1755569674719,2.86,182.88,182.79,3.02]
[1755569674914,2.86,182.86,182.79,3.02]
[1755569675115,2.86,182.84,182.75,6.02801222]
[1755569676519,2.86,182.84,182.76,3.02]
[1755569677322,155.25801222,182.9,182.78,5.4682]
[1755569677620,2.86,182.87,182.79,3.02]
[1755569677817,3.82544466,182.86,182.79,3.02]
[1755569678017,2.86,182.87,182.79,3.02]
[1755569678217,3.82544477,182.86,182.79,3.02]
[1755569678419,2.86,182.87,182.79,3.02]
[1755569678622,3.82676757,182.86,182.79,3.02]
[1755569678821,2.86,182.87,182.79,3.02]
[1755569679014,3.82676757,182.86,182.79,3.02]
[1755569679211,2.86,182.87,182.79,3.02]
[1755569679424,3.82871284,182.86,182.79,3.02]
[1755569679618,2.86,182.87,182.79,3.02]
[1755569679922,3.8288768,182.86,182.79,3.02]
[1755569680118,3.82871241,182.85,182.79,3.02]
[1755569680318,2.86,182.87,182.79,3.02]
[1755569680521,3.83067741,182.86,182.79,3.02]
[1755569680723,3.83067741,182.85,182.79,3.02]
[1755569680920,2.86,182.87,182.79,3.02]
[1755569681222,2.86,182.85,182.79,3.02]
[1755569681419,2.86,182.85,182.75,3.00801222]
[1755569681624,2.86,182.83,182.75,6.02801222]
[1755569682019,2.86,182.83,182.75,11.49731222]
[1755569682718,3.00801222,182.87,182.75,3.00801222]
[1755569682922,3.83663428,182.86,182.81,3.00801222]
[1755569683121,138.72,182.9,182.82,3.02]
[1755569683333,8.22452637,182.89,182.82,3.02]
[1755569683527,3.83969083,182.88,182.82,3.02]
[1755569683825,3.83969083,182.87,182.82,3.02]
[1755569684026,3.83969083,182.86,182.81,8.47541222]
[1755569684225,138.72,182.9,182.82,3.02]
[1755569684425,8.23247602,182.89,182.82,3.02]
[1755569684623,3.84366872,182.88,182.82,3.02]
[1755569684818,3.84366872,182.87,182.81,8.47541222]
[1755569685024,3.84366872,182.86,182.81,8.47541222]